bitfinex/quotes_BTCUSD_20241027
["timestamp","ask_amount","ask_price","bid_price","bid_amount"]
[1730027442448,0.16427528,67015.0,67014.0,1.000821]
[1730027444350,0.16427528,67015.0,67014.0,0.996121]
[1730027446076,0.14192513,67015.0,67014.0,0.996121]
[1730027446323,0.16427486,67015.0,67014.0,0.996121]
[1730027446558,0.13075006,67015.0,67014.0,0.996121]
[1730027446784,0.16427491,67015.0,67014.0,0.996121]
[1730027450050,0.1530993,67015.0,67014.0,0.996121]
[1730027450277,0.16427393,67015.0,67014.0,0.996121]
[1730027453843,0.16427227,67015.0,67014.0,0.996121]
[1730027454048,0.17544634,67015.0,67014.0,0.996121]
[1730027454236,0.17544618,67015.0,67014.0,0.996121]
[1730027455611,0.16427227,67015.0,67014.0,0.996121]
[1730027455845,0.17544624,67015.0,67014.0,0.996121]
[1730027456088,0.17544613,67015.0,67014.0,0.996121]
[1730027456333,0.17823943,67015.0,67014.0,0.996121]
[1730027457240,0.16427206,67015.0,67014.0,0.996121]
[1730027458625,0.17823913,67015.0,67014.0,0.996121]
[1730027459301,0.17823897,67015.0,67014.0,0.996121]
[1730027459525,0.15589097,67015.0,67014.0,0.996121]
[1730027459789,0.17823668,67015.0,67014.0,0.996121]
[1730027461882,0.16705979,67015.0,67014.0,0.996121]
[1730027462094,0.17823201,67015.0,67014.0,0.996121]
[1730027463728,0.16426673,67015.0,67014.0,0.996121]
[1730027463941,0.17823154,67015.0,67014.0,0.996121]
[1730027465663,0.16705752,67015.0,67014.0,0.996121]
[1730027465904,0.17822884,67015.0,67014.0,0.996121]
[1730027466333,0.16426403,67015.0,67014.0,0.996121]
[1730027468607,0.17822826,67015.0,67014.0,0.996121]
[1730027469476,0.14192138,67015.0,67014.0,0.996121]
[1730027469703,0.13075006,67015.0,67014.0,0.996121]
[1730027469921,0.17822882,67015.0,67014.0,0.996121]
[1730027471633,0.17822965,67015.0,67014.0,0.996121]
[1730027472488,0.17822965,67015.0,67014.0,0.971121]
[1730027473370,0.14192174,67015.0,67014.0,0.971121]
[1730027473583,0.17822972,67015.0,67014.0,0.971121]
[1730027475952,0.08442972,67015.0,67014.0,0.971121]
[1730027476165,0.07325804,67015.0,67014.0,0.971121]
[1730027481128,0.03695006,67015.0,67014.0,0.971121]
[1730027481332,0.07325587,67015.0,67014.0,0.971121]
[1730027488391,0.07325267,67015.0,67014.0,0.971121]
[1730027492336,0.07325607,67015.0,67014.0,0.971121]
[1730027496073,0.03695006,67015.0,67014.0,0.971121]
[1730027496331,0.07325849,67015.0,67014.0,0.971121]
[1730027504118,0.05929725,67015.0,67014.0,0.971121]
[1730027504325,0.03695006,67015.0,67014.0,0.971121]
[1730027504558,0.07326547,67015.0,67014.0,0.971121]
[1730027504764,0.08443944,67015.0,67014.0,0.971121]
[1730027507819,0.08444224,67015.0,67014.0,0.971121]
[1730027508280,0.07326827,67015.0,67014.0,0.971121]
[1730027516192,0.05929973,67015.0,67014.0,0.971121]
[1730027516339,0.03695006,67015.0,67014.0,0.971121]
[1730027516548,0.07326327,67015.0,67014.0,0.971121]
[1730027519641,0.03695006,67015.0,67014.0,0.971121]
[1730027519869,0.07326276,67015.0,67014.0,0.971121]
[1730027526364,0.07326286,67015.0,67014.0,0.971121]
[1730027526746,0.07326289,67015.0,67014.0,0.971121]
[1730027530185,0.07326341,67015.0,67014.0,0.971121]
[1730027533921,0.03695006,67015.0,67014.0,0.971121]
[1730027534135,0.07326508,67015.0,67014.0,0.971121]
[1730027536215,0.07326689,67015.0,67014.0,0.971121]
[1730027538071,0.05929967,67015.0,67014.0,0.971121]
[1730027541763,0.03695006,67015.0,67014.0,0.971121]
[1730027541963,0.05929946,67015.0,67014.0,0.971121]
[1730027545511,0.03695006,67015.0,67014.0,0.971121]
[1730027545735,0.05929925,67015.0,67014.0,0.971121]
[1730027549914,0.05929572,67015.0,67014.0,0.971121]
[1730027561081,0.05929524,67015.0,67014.0,0.971121]
[1730027561300,0.05929524,67015.0,67014.0,1.12662481]
[1730027561301,0.03695006,67015.0,67014.0,1.12662481]
[1730027567881,0.03695006,67015.0,67014.0,1.21772481]
[1730027568572,0.03695006,67015.0,67014.0,1.30452481]
[1730027569471,0.03695006,67015.0,67014.0,1.40452481]
[1730027571632,0.03695006,67015.0,67014.0,1.44929145]
[1730027571819,0.03695006,67015.0,67014.0,1.4726432]
[1730027572682,0.03695006,67015.0,67014.0,1.42787656]
[1730027578989,0.03695006,67015.0,67014.0,1.42987656]
[1730027579203,0.03695006,67015.0,67014.0,1.42787656]
[1730027579825,0.03695006,67015.0,67014.0,1.42987656]
[1730027581744,0.03695006,67015.0,67014.0,1.42787656]
[1730027582425,0.03695006,67015.0,67014.0,1.42987656]
[1730027583331,0.03695006,67015.0,67014.0,1.42787656]
[1730027583533,0.03695006,67015.0,67014.0,1.41548614]
[1730027587556,0.03695006,67015.0,67014.0,1.40548614]
[1730027587759,0.03695006,67015.0,67014.0,1.41548614]
[1730027592122,0.03695006,67015.0,67014.0,1.33868614]
[1730027594720,0.03695006,67015.0,67014.0,1.24758614]
[1730027596849,0.001642,67015.0,67014.0,1.24758614]
[1730027597061,0.03796219,67015.0,67014.0,1.24758614]
[1730027597321,0.0379616,67015.0,67014.0,1.24958614]
[1730027598183,0.05192629,67015.0,67014.0,1.24958614]
[1730027598408,0.0379616,67015.0,67014.0,1.24958614]
[1730027598636,0.05192634,67015.0,67014.0,1.24958614]
[1730027599047,0.05192726,67015.0,67014.0,1.24958614]
[1730027601173,0.05192726,67015.0,67014.0,1.24758614]
[1730027601791,0.0379616,67015.0,67014.0,1.24758614]
[1730027602019,0.051928,67015.0,67014.0,1.24758614]
[1730027604402,0.051928,67015.0,67014.0,1.29232257]
[1730027606310,0.051928,67015.0,67014.0,1.28232257]
[1730027606514,0.051928,67015.0,67014.0,1.24758614]
[1730027608401,0.051928,67015.0,67014.0,1.31469078]
[1730027609625,0.05193151,67015.0,67014.0,1.31469078]
[1730027609843,0.05193151,67015.0,67014.0,1.30469078]
[1730027610051,0.05193151,67015.0,67014.0,1.31669078]
[1730027610463,0.05193151,67015.0,67014.0,1.31469078]
[1730027611289,0.05193151,67015.0,67014.0,1.31669078]
[1730027611494,0.05193151,67015.0,67014.0,1.24758614]
[1730027611700,0.05193151,67015.0,67014.0,1.23958614]
[1730027611905,0.05193151,67015.0,67014.0,1.24958614]
[1730027612311,0.05193151,67015.0,67014.0,1.24758614]
[1730027613169,0.05193151,67015.0,67014.0,1.24958614]
[1730027613389,0.05193152,67015.0,67014.0,1.24758614]
[1730027615786,0.05193152,67015.0,67014.0,1.3120943]
[1730027617132,0.05193166,67015.0,67014.0,1.3120943]
[1730027617540,0.05193166,67015.0,67014.0,1.3020943]
[1730027617764,0.05193166,67015.0,67014.0,1.3120943]
[1730027618594,0.05193166,67015.0,67014.0,1.24491683]
[1730027618813,0.05193166,67015.0,67014.0,1.33448679]
[1730027619272,0.0379616,67015.0,67014.0,1.33448679]
[1730027620841,0.0379616,67015.0,67014.0,1.24491683]
[1730027621058,0.0379616,67015.0,67014.0,1.32760176]
[1730027625393,0.0379616,67015.0,67014.0,1.3275904]
[1730027627404,0.0379616,67015.0,67014.0,1.23803897]
[1730027629166,0.0379616,67015.0,67014.0,1.37297826]
[1730027629378,0.001642,67017.0,67016.0,0.038]
[1730027629606,0.001642,67017.0,67016.0,0.40041827]
[1730027629823,0.03221889,67017.0,67016.0,0.44704461]
[1730027630257,0.092042,67018.0,67017.0,0.138]
[1730027630481,0.00687618,67018.0,67017.0,0.47611138]
[1730027630698,0.00687618,67018.0,67017.0,0.49744948]
[1730027630931,0.00687618,67018.0,67017.0,0.40794191]
[1730027631364,6.99301295,67020.0,67019.0,0.015]
[1730027631586,6.99301295,67020.0,67019.0,0.36540381]
[1730027632923,7.02043836,67020.0,67019.0,0.36540381]
[1730027633347,7.02043836,67020.0,67019.0,0.43249851]
[1730027633983,7.00758007,67020.0,67019.0,0.43249851]
[1730027635330,7.00758007,67020.0,67019.0,0.36540381]
[1730027635778,7.00758007,67020.0,67019.0,0.37728914]
[1730027636878,7.00922207,67020.0,67019.0,0.37728914]
[1730027637758,6.95275205,67020.0,67019.0,0.37728914]
[1730027643139,6.61460565,67020.0,67019.0,0.37728914]
[1730027647843,6.61460565,67020.0,67019.0,0.30038914]
[1730027648319,6.55860565,67020.0,67019.0,0.30038914]
[1730027648524,6.55860565,67020.0,67019.0,0.30121014]
[1730027653197,6.55860565,67020.0,67019.0,0.34590141]
[1730027654064,6.55860565,67020.0,67019.0,0.34790141]
[1730027655393,6.55860565,67020.0,67019.0,0.30321014]
[1730027656548,6.55860565,67020.0,67019.0,0.30121014]
[1730027656981,6.55860565,67020.0,67019.0,0.30321014]
[1730027658100,6.55860565,67020.0,67019.0,0.30121014]
[1730027658374,6.55860565,67020.0,67019.0,0.41484404]
[1730027658582,6.55860565,67020.0,67019.0,0.34780117]
[1730027661590,6.55860565,67020.0,67019.0,0.34489957]
[1730027662023,6.55860565,67020.0,67019.0,0.34689957]
[1730027662456,6.55677966,67020.0,67019.0,0.34689957]
[1730027662866,6.55677966,67020.0,67019.0,0.34489957]
[1730027663979,6.55677966,67020.0,67019.0,0.34689957]
[1730027664210,6.55677966,67020.0,67019.0,0.43430639]
[1730027665139,6.55677966,67020.0,67019.0,0.43630639]
[1730027665364,6.55677966,67020.0,67019.0,0.43430639]
[1730027666444,6.55677966,67020.0,67019.0,0.43630639]
[1730027668352,6.55677966,67020.0,67019.0,0.34689957]
[1730027669423,6.55677966,67020.0,67019.0,0.34489957]
[1730027669638,6.65357966,67020.0,67019.0,0.43436637]
[1730027670109,6.65357966,67020.0,67019.0,0.34489957]
[1730027670359,6.65357966,67020.0,67019.0,0.43636637]
[1730027670781,6.65357966,67020.0,67019.0,0.43437807]
[1730027671018,6.65357966,67020.0,67019.0,0.43637807]
[1730027671756,6.65357966,67020.0,67019.0,0.43437807]
[1730027672471,6.65357966,67020.0,67019.0,0.34689957]
[1730027672690,6.65357966,67020.0,67019.0,0.4587477]
[1730027672909,6.65357966,67020.0,67019.0,0.4567477]
[1730027673367,6.65357966,67020.0,67019.0,0.4587477]
[1730027673589,6.65357966,67020.0,67019.0,0.4567477]
[1730027674246,6.65357966,67020.0,67019.0,0.4587477]
[1730027674475,6.65357966,67020.0,67019.0,0.34689957]
[1730027674734,6.65357966,67020.0,67019.0,0.34489957]
[1730027688560,6.55677966,67020.0,67019.0,0.34489957]
[1730027700280,6.55677966,67020.0,67019.0,0.34689957]
[1730027700793,6.55677966,67020.0,67019.0,0.34489957]
[1730027706936,6.58677966,67020.0,67019.0,0.34489957]
[1730027730577,6.58677966,67020.0,67019.0,0.34689957]
[1730027733417,6.58677966,67020.0,67019.0,0.34489957]
[1730027735004,6.58677966,67020.0,67019.0,0.34689957]
[1730027735376,6.58677966,67020.0,67019.0,0.34489957]
[1730027741485,6.58677966,67020.0,67019.0,0.34689957]
[1730027742861,6.58677966,67020.0,67019.0,0.34489957]
[1730027745418,6.58677966,67020.0,67019.0,0.34689957]
[1730027750853,6.58677966,67020.0,67019.0,0.34489957]
[1730027752544,6.58677966,67020.0,67019.0,0.34689957]
[1730027752781,6.58677966,67020.0,67019.0,0.34489957]
[1730027753162,6.58677966,67020.0,67019.0,0.34689957]
[1730027753368,6.58677966,67020.0,67019.0,0.34489957]
[1730027754385,6.58677966,67020.0,67019.0,0.34689957]
[1730027756717,6.58677966,67020.0,67019.0,0.34489957]
[1730027762592,6.58677966,67020.0,67019.0,0.34280117]
[1730027762795,6.58677966,67020.0,67019.0,0.33780117]
[1730027763006,6.58677966,67020.0,67019.0,0.34280117]
[1730027763898,6.58677966,67020.0,67019.0,0.34480117]
[1730027764090,6.58677966,67020.0,67019.0,0.34280117]
[1730027764914,6.58677966,67020.0,67019.0,0.34480117]
[1730027765532,6.58677966,67020.0,67019.0,0.34280117]
[1730027765739,6.58677966,67020.0,67019.0,0.34480117]
[1730027766362,6.58677966,67020.0,67019.0,0.34280117]
[1730027769942,6.58677966,67020.0,67019.0,0.34480117]
[1730027770341,6.58677966,67020.0,67019.0,0.34280117]
[1730027775250,6.58677966,67020.0,67019.0,0.33780117]
[1730027775464,6.58677966,67020.0,67019.0,0.34280117]
[1730027777823,6.58677966,67020.0,67019.0,0.33596626]
[1730027778432,6.58677966,67020.0,67019.0,0.31480117]
[1730027813102,6.55935425,67020.0,67019.0,0.31480117]
[1730027813311,6.5867582,67020.0,67019.0,0.31480117]
[1730027815262,6.5867582,67020.0,67019.0,0.33780117]
[1730027815677,6.5867582,67020.0,67019.0,0.47413297]
[1730027815901,6.57687721,67020.0,67019.0,0.33980117]
[1730027816118,6.57687721,67020.0,67019.0,0.34689957]
[1730027816119,6.37306455,67020.0,67019.0,0.34689957]
[1730027816339,6.29607337,67020.0,67019.0,0.34689957]
[1730027816593,6.08953317,67020.0,67019.0,0.34689957]
[1730027816825,6.04265371,67020.0,67019.0,0.34489957]
[1730027818653,5.85890085,67020.0,67019.0,0.34489957]
[1730027818861,5.80645485,67020.0,67019.0,0.34489957]
[1730027819495,5.80645485,67020.0,67019.0,0.29830854]
[1730027819939,5.80045485,67020.0,67019.0,0.29830854]
[1730027820186,5.62084155,67020.0,67019.0,0.34490957]
[1730027821051,5.62084155,67020.0,67019.0,0.34690957]
[1730027821280,5.62084155,67020.0,67019.0,0.34490957]
[1730027822134,5.58629286,67020.0,67019.0,0.34490957]
[1730027822798,5.55405286,67020.0,67019.0,0.34490957]
[1730027823239,5.54804767,67020.0,67019.0,0.34490957]
[1730027824303,5.51677286,67020.0,67019.0,0.29830854]
[1730027824505,5.48277286,67020.0,67019.0,0.29830854]
[1730027824711,5.45374309,67020.0,67019.0,0.29830854]
[1730027824921,5.45374309,67020.0,67019.0,0.30030854]
[1730027825170,5.27482807,67020.0,67019.0,0.29830854]
[1730027825378,5.23450807,67020.0,67019.0,0.43887943]
[1730027825594,5.20810807,67020.0,67019.0,0.43687943]
[1730027826218,4.71157968,67020.0,67019.0,0.43687943]
[1730027826424,4.69451084,67020.0,67019.0,0.43687943]
[1730027827694,4.64369987,67020.0,67019.0,0.43687943]
[1730027827901,4.58759031,67020.0,67019.0,0.43887943]
[1730027828107,4.57359031,67020.0,67019.0,0.43687943]
[1730027828311,4.54966531,67020.0,67019.0,0.43687943]
[1730027828517,4.54166531,67020.0,67019.0,0.43687943]
[1730027829367,4.51866531,67020.0,67019.0,0.43687943]
[1730027830453,3.39325303,67020.0,67019.0,0.54604943]
[1730027830679,3.38725303,67020.0,67019.0,0.54604943]
[1730027831088,3.38725303,67020.0,67019.0,0.68008777]
[1730027831089,3.15187532,67020.0,67019.0,0.68008777]
[1730027831289,2.77803532,67020.0,67019.0,0.54604943]
[1730027831490,2.58891665,67020.0,67019.0,0.54404943]
[1730027831714,2.20809665,67020.0,67019.0,0.54404943]
[1730027831926,2.13347665,67020.0,67019.0,0.54404943]
[1730027832355,2.13347665,67020.0,67019.0,0.54604943]
[1730027832356,2.03581665,67020.0,67019.0,0.54604943]
[1730027832562,1.93567665,67020.0,67019.0,0.54604943]
[1730027833176,1.87760901,67020.0,67019.0,0.54604943]
[1730027833602,1.87760901,67020.0,67019.0,0.54404943]
[1730027836175,1.75792429,67020.0,67019.0,0.54404943]
[1730027836817,1.73592429,67020.0,67019.0,0.54404943]
[1730027838935,1.64328377,67020.0,67019.0,0.54404943]
[1730027839348,1.48015377,67020.0,67019.0,0.54404943]
[1730027839558,1.47315377,67020.0,67019.0,0.54404943]
[1730027839972,1.43835377,67020.0,67019.0,0.54404943]
[1730027841903,1.41335377,67020.0,67019.0,0.54404943]
[1730027844311,1.40367733,67020.0,67019.0,0.54404943]
[1730027845476,1.39804311,67020.0,67019.0,0.54404943]
[1730027845694,1.36304311,67020.0,67019.0,0.54404943]
[1730027846090,1.32960311,67020.0,67019.0,0.54404943]
[1730027846320,1.32518962,67020.0,67019.0,0.54404943]
[1730027846545,1.30864419,67020.0,67019.0,0.54404943]
[1730027847433,1.16120483,67020.0,67019.0,0.54404943]
[1730027847662,1.1082604,67020.0,67019.0,0.54404943]
[1730027848378,1.0793048,67020.0,67019.0,0.54404943]
[1730027849028,0.53756261,67020.0,67019.0,0.54404943]
[1730027849287,0.53356261,67020.0,67019.0,0.54404943]
[1730027849707,0.08584325,67020.0,67019.0,0.54404943]
[1730027850143,0.03,67031.0,67021.0,0.0650984]
[1730027850360,0.03,67031.0,67021.0,0.3621731]
[1730027850568,0.03,67031.0,67030.0,0.0420984]
[1730027850802,0.03,67031.0,67030.0,0.31560221]
[1730027852137,0.00425112,67031.0,67030.0,0.31560221]
[1730027852557,0.05695112,67032.0,67031.0,0.1650984]
[1730027852761,0.05695112,67032.0,67031.0,0.31858553]
[1730027852999,0.05695112,67032.0,67031.0,0.31560221]
[1730027853228,0.05495112,67032.0,67031.0,0.31560221]
[1730027853484,0.1726,67037.0,67036.0,0.0120984]
[1730027853711,0.2026,67037.0,67036.0,0.21560221]
[1730027853919,0.22892625,67037.0,67036.0,0.31560221]
[1730027855650,0.22892625,67037.0,67036.0,0.36020842]
[1730027856298,0.22892625,67037.0,67036.0,0.36021398]
[1730027857273,0.23056825,67037.0,67036.0,0.36021398]
[1730027858175,0.23056825,67037.0,67036.0,0.3600181]
[1730027858563,0.23056825,67037.0,67036.0,0.31540633]
[1730027859629,0.23056825,67037.0,67036.0,0.36195599]
[1730027860769,0.23056825,67037.0,67036.0,0.45117954]
[1730027860882,0.23056825,67037.0,67036.0,0.36395599]
[1730027861977,0.23056825,67037.0,67036.0,0.45317954]
[1730027862212,0.23056825,67037.0,67036.0,0.45117954]
[1730027862636,0.23056825,67037.0,67036.0,0.36195599]
[1730027871374,0.15136825,67037.0,67036.0,0.36195599]
[1730027873511,0.15136825,67037.0,67036.0,0.49604582]
[1730027873699,0.05796825,67037.0,67036.0,0.36195599]
[1730027875503,0.05796825,67037.0,67036.0,0.42158999]
[1730027876419,0.02562981,67037.0,67036.0,0.42158999]
[1730027876763,0.03889962,67037.0,67036.0,0.42158999]
[1730027877728,0.079142,67041.0,67039.0,0.04190252]
[1730027877729,0.1025,67040.0,67039.0,0.04190252]
[1730027877952,0.079142,67041.0,67039.0,0.04190252]
[1730027877953,0.079142,67041.0,67040.0,0.14190252]
[1730027878180,0.079142,67041.0,67040.0,0.36195599]
[1730027878682,0.001642,67041.0,67040.0,0.36195599]
[1730027879586,0.001642,67041.0,67040.0,0.36395599]
[1730027879940,0.02163179,67041.0,67040.0,0.36395599]
[1730027882397,0.02163179,67041.0,67040.0,0.36195599]
[1730027883442,0.02163179,67041.0,67040.0,0.37383628]
[1730027883872,0.02163179,67041.0,67040.0,0.37583628]
[1730027884993,0.02163179,67041.0,67040.0,0.37383628]
[1730027886587,0.02163179,67041.0,67040.0,0.50798826]
[1730027887255,0.001642,67041.0,67040.0,0.50798826]
[1730027887617,0.001642,67041.0,67040.0,0.37383628]
[1730027890456,0.001642,67041.0,67040.0,0.37583628]
[1730027890674,0.001642,67041.0,67040.0,0.37383628]
[1730027892458,0.0969,67049.0,67045.0,0.005]
[1730027892681,0.0969,67049.0,67045.0,0.30850381]
[1730027892902,0.02166693,67046.0,67045.0,0.36005347]
[1730027893125,0.02166693,67046.0,67045.0,0.36195599]
[1730027893126,0.001642,67046.0,67045.0,0.36195599]
[1730027899083,0.001642,67046.0,67045.0,0.49611618]
[1730027900576,0.001642,67046.0,67045.0,0.4961205]
[1730027903388,0.001642,67046.0,67045.0,0.5557485]
[1730027904496,0.001642,67046.0,67045.0,0.42158399]
[1730027906983,0.001642,67046.0,67045.0,0.42358399]
[1730027908527,0.001642,67046.0,67045.0,0.42158399]
[1730027908731,0.001642,67046.0,67045.0,0.42358399]
[1730027908947,0.001642,67046.0,67045.0,0.42158399]
[1730027909394,0.001642,67046.0,67045.0,0.55772651]
[1730027909866,0.001642,67046.0,67045.0,0.42158399]
[1730027910488,0.02209869,67046.0,67045.0,0.42158399]
[1730027910705,0.02209869,67046.0,67045.0,0.42358399]
[1730027910911,0.02045669,67046.0,67045.0,0.55771449]
[1730027911125,0.22240179,67051.0,67050.0,0.005]
[1730027911328,0.077442,67054.0,67053.0,0.058]
[1730027911543,0.077442,67054.0,67053.0,0.27638036]
[1730027912005,0.077442,67054.0,67053.0,0.46579933]
[1730027913184,0.077442,67054.0,67053.0,0.46579762]
[1730027914151,0.09458355,67054.0,67053.0,0.46579762]
[1730027915545,0.09458355,67054.0,67053.0,0.46579953]
[1730027916964,0.09458355,67054.0,67053.0,0.4772147]
[1730027920429,0.077442,67054.0,67053.0,0.4772147]
[1730027920827,0.077442,67054.0,67053.0,0.38779553]
[1730027923152,0.077442,67054.0,67053.0,0.49956949]
[1730027924602,0.001642,67054.0,67053.0,0.49956949]
[1730027924803,0.001642,67054.0,67053.0,0.49959442]
[1730027925423,0.001642,67054.0,67053.0,0.38779553]
[1730027927347,0.001642,67054.0,67053.0,0.38979553]
[1730027927520,0.001642,67054.0,67053.0,0.38779553]
[1730027929120,0.0811,67063.0,67062.0,0.005]
[1730027929297,0.001642,67077.0,67070.0,0.005]
[1730027929508,0.001642,67077.0,67070.0,0.28550381]
[1730027929927,0.182842,67071.0,67070.0,0.28550381]
[1730027931978,0.182842,67071.0,67070.0,0.30850381]
[1730027932801,0.176842,67071.0,67070.0,0.30850381]
[1730027935079,0.176842,67071.0,67070.0,0.320315]
[1730027935287,0.182842,67071.0,67070.0,0.320315]
[1730027938619,0.082742,67071.0,67070.0,0.320315]
[1730027938824,0.006,67071.0,67070.0,0.320315]
[1730027940000,0.007642,67071.0,67070.0,0.320315]
[1730027943516,0.007642,67071.0,67070.0,0.322315]
[1730027944336,0.007642,67071.0,67070.0,0.38928038]
[1730027944536,0.007642,67071.0,67070.0,0.322315]
[1730027944810,0.007642,67071.0,67070.0,0.320315]
[1730027945627,0.007642,67071.0,67070.0,0.36492313]
[1730027947692,0.007642,67071.0,67070.0,0.320315]
[1730027947928,0.007642,67071.0,67070.0,0.36492313]
[1730027948606,0.007642,67071.0,67070.0,0.320315]
[1730027949335,0.007642,67071.0,67070.0,0.36492313]
[1730027949566,0.007642,67071.0,67070.0,0.320315]
[1730027949792,0.001642,67077.0,67075.0,0.005]
[1730027950032,0.001642,67077.0,67076.0,0.13]
[1730027950265,0.001642,67077.0,67076.0,0.44419703]
[1730027950507,0.001642,67077.0,67076.0,0.35690985]
[1730027950734,0.001642,67077.0,67076.0,0.35490985]
[1730027951198,0.001642,67077.0,67076.0,0.35690985]
[1730027951416,0.001642,67077.0,67076.0,0.35490985]
[1730027951626,0.001642,67077.0,67076.0,0.42168346]
[1730027951842,0.000622,67083.0,67082.0,0.058]
[1730027952044,0.000622,67083.0,67082.0,0.20850381]
[1730027952258,0.000622,67083.0,67082.0,0.30850381]
[1730027955617,0.000622,67083.0,67082.0,0.29293997]
[1730027957580,0.000622,67083.0,67082.0,0.30487458]
[1730027961157,0.000622,67083.0,67082.0,0.40667458]
[1730027961367,0.000622,67083.0,67082.0,0.40867458]
[1730027961582,0.0786,67108.0,67093.0,0.1318]
[1730027961769,0.0786,67108.0,67098.0,0.055]
[1730027961770,0.22240179,67107.0,67098.0,0.055]
[1730027962217,0.0786,67108.0,67098.0,0.055]
[1730027962780,0.0786,67108.0,67098.0,0.053]
[1730027963212,0.0014294,67105.0,67100.0,0.03]
[1730027963414,0.0014294,67105.0,67104.0,0.28050381]
[1730027966735,0.0014294,67105.0,67104.0,0.28250381]
[1730027967492,0.0014294,67105.0,67104.0,0.28050381]
[1730027970528,0.0014294,67105.0,67104.0,0.28250381]
[1730027970971,0.0014294,67105.0,67104.0,0.28050381]
[1730027982075,0.0014294,67105.0,67104.0,0.28250381]
[1730027982515,0.0014294,67105.0,67104.0,0.28050381]
[1730027997119,0.0014294,67105.0,67038.0,0.3949339]
[1730027997351,0.0014294,67105.0,67104.0,0.28050381]
[1730027997352,0.0064294,67105.0,67104.0,0.28050381]
[1730027999307,0.1061294,67105.0,67104.0,0.28050381]
[1730027999531,0.19976014,67105.0,67104.0,0.28050381]
[1730028001463,0.19976014,67105.0,67104.0,0.29208116]
[1730028010296,0.20576014,67105.0,67104.0,0.29208116]
[1730028010954,0.20576014,67105.0,67104.0,0.04157735]
[1730028011593,0.20576014,67105.0,67102.0,0.02130924]
[1730028011594,0.1911,67104.0,67103.0,0.03]
[1730028011813,0.1931,67104.0,67103.0,0.0416934]
[1730028012035,0.21416175,67104.0,67103.0,0.03]
[1730028012748,0.21216175,67104.0,67103.0,0.03]
[1730028013602,0.21216175,67104.0,67103.0,0.04180714]
[1730028016591,0.21216175,67104.0,67103.0,0.29231095]
[1730028016592,0.02106175,67104.0,67103.0,0.29231095]
[1730028016819,0.005,67104.0,67103.0,0.29231095]
[1730028033737,0.006642,67104.0,67103.0,0.29231095]
[1730028034854,0.006642,67104.0,67103.0,0.28938291]
[1730028056256,0.006642,67104.0,67103.0,0.29020391]
[1730028064206,0.203742,67104.0,67103.0,0.29020391]
[1730028064552,0.22198975,67104.0,67103.0,0.29020391]
[1730028064753,0.10518975,67104.0,67103.0,0.29020391]
[1730028076120,0.10518975,67104.0,67103.0,0.33486521]
[1730028076748,0.10518975,67104.0,67103.0,0.29020391]
[1730028077347,0.10518975,67104.0,67103.0,0.33486498]
[1730028078999,0.10518975,67104.0,67103.0,0.29020391]
[1730028079628,0.10518975,67104.0,67103.0,0.33486488]
[1730028080502,0.10518975,67104.0,67103.0,0.29020391]
[1730028080934,0.10518975,67104.0,67103.0,0.33486478]
[1730028081361,0.10518975,67104.0,67103.0,0.29020391]
[1730028081831,0.10518975,67104.0,67103.0,0.33486511]
[1730028082046,0.10518975,67104.0,67103.0,0.33486534]
[1730028082251,0.10518975,67104.0,67103.0,0.29020391]
[1730028082704,0.10518975,67104.0,67103.0,0.33486555]
[1730028083615,0.10518975,67104.0,67103.0,0.29020391]
[1730028084066,0.10518975,67104.0,67103.0,0.33486574]
[1730028084302,0.10518975,67104.0,67103.0,0.29020391]
[1730028084935,0.10518975,67104.0,67103.0,0.33486597]
[1730028085146,0.10518975,67104.0,67103.0,0.29020391]
[1730028085582,0.10518975,67104.0,67103.0,0.33486589]
[1730028085794,0.10518975,67104.0,67103.0,0.29020391]
[1730028100250,0.10518975,67104.0,67103.0,0.28948515]
[1730028103016,0.02488975,67104.0,67103.0,0.28948515]
[1730028103449,0.006642,67104.0,67103.0,0.28948515]
[1730028104569,0.001642,67104.0,67103.0,0.40888515]
[1730028104784,0.006642,67104.0,67103.0,0.64695577]
[1730028105000,0.006642,67104.0,67103.0,0.53530208]
[1730028105226,0.001642,67104.0,67103.0,0.53530208]
[1730028105694,0.006642,67104.0,67103.0,0.64688082]
[1730028107598,0.006642,67104.0,67103.0,0.53530208]
[1730028110906,0.006642,67104.0,67103.0,0.45540208]
[1730028113688,0.006642,67104.0,67103.0,0.54459556]
[1730028119563,0.006642,67104.0,67103.0,0.54457521]
[1730028120644,0.006642,67104.0,67103.0,0.42517521]
[1730028120853,0.006642,67104.0,67103.0,0.33600208]
[1730028125465,0.006642,67104.0,67103.0,0.28948515]
[1730028135194,0.02666783,67104.0,67103.0,0.28948515]
[1730028137429,0.10566783,67104.0,67103.0,0.28948515]
[1730028137651,0.22266783,67104.0,67103.0,0.28948515]
[1730028140328,0.22266783,67104.0,67103.0,0.03898134]
[1730028140782,0.22266783,67104.0,67103.0,0.000821]
[1730028141261,0.202642,67104.0,67103.0,0.000821]
[1730028141728,0.22266861,67104.0,67103.0,0.0271742]
[1730028149048,0.22266861,67104.0,67103.0,0.03]
[1730028159097,0.22266861,67104.0,67103.0,0.030821]
[1730028178653,0.22466861,67104.0,67103.0,0.030821]
[1730028178858,0.22266861,67104.0,67103.0,0.030821]
[1730028179813,0.22466861,67104.0,67103.0,0.030821]
[1730028181037,0.22966861,67104.0,67103.0,0.030821]
[1730028181921,0.23466861,67104.0,67103.0,0.030821]
[1730028182127,0.23966861,67104.0,67103.0,0.030821]
[1730028182357,0.26481891,67104.0,67103.0,0.030821]
[1730028183118,0.30951405,67104.0,67103.0,0.030821]
[1730028183523,0.26481891,67104.0,67103.0,0.030821]
[1730028183724,0.30951405,67104.0,67103.0,0.030821]
[1730028183905,0.26481891,67104.0,67103.0,0.030821]
[1730028184110,0.30951405,67104.0,67103.0,0.030821]
[1730028184617,0.26481891,67104.0,67103.0,0.030821]
[1730028185153,0.30951405,67104.0,67103.0,0.030821]
[1730028185560,0.30950595,67104.0,67103.0,0.030821]
[1730028185817,0.26481081,67104.0,67103.0,0.030821]
[1730028186226,0.30950595,67104.0,67103.0,0.030821]
[1730028187023,0.26481081,67104.0,67103.0,0.030821]
[1730028188812,0.26481081,67104.0,67103.0,0.000821]
[1730028191746,0.26281081,67104.0,67103.0,0.000821]
[1730028192794,0.26481081,67104.0,67103.0,0.000821]
[1730028193199,0.23966861,67104.0,67103.0,0.000821]
[1730028193425,0.26479697,67104.0,67103.0,0.000821]
[1730028195500,0.26279697,67104.0,67103.0,0.000821]
[1730028195826,0.26479697,67104.0,67103.0,0.000821]
[1730028197064,0.26279697,67104.0,67103.0,0.000821]
[1730028197262,0.26279263,67104.0,67103.0,0.000821]
[1730028197996,0.26479263,67104.0,67103.0,0.000821]
[1730028199591,0.26279263,67104.0,67103.0,0.000821]